fUSD/lending_fUSD_20250513
["ID","MTS","AMOUNT","RATE_DAILY","PERIOD"]
[360937023,1747158634138,-673.13,0.00010958,2]
[360937024,1747158634147,-400.0,0.00010958,2]
[360937025,1747158634157,-400.0,0.00010958,2]
[360937026,1747158634167,-400.0,0.00010958,2]
[360937027,1747158634177,-400.0,0.00010958,2]
[360937028,1747158634187,-400.0,0.00010958,2]
[360937029,1747158634196,-400.0,0.00010958,2]
[360937030,1747158634205,-553.19,0.00010958,2]
[360937031,1747158634214,-400.0,0.00010958,2]
[360937032,1747158634224,-400.0,0.00010958,2]
[360937033,1747158634233,-1286.82,0.00010958,2]
[360937034,1747158634243,-565.92,0.00010958,2]
[360937035,1747158634252,-400.0,0.00010958,2]
[360937036,1747158634261,-400.0,0.00010958,2]
[360937037,1747158634270,-400.0,0.00010958,2]
[360937038,1747158634279,-602.7,0.00010958,2]
[360937039,1747158634288,-758.24,0.00010958,2]
[360937040,1747158634297,-548.99,0.00010958,2]
[360937041,1747158634306,-461.886308,0.00010958,2]
[360937042,1747158634315,-400.0,0.00010958,2]
[360937043,1747158634325,-400.0,0.00010958,2]
[360937044,1747158634334,-400.0,0.00010958,2]
[360937045,1747158634344,-405.58,0.00010958,2]
[360937046,1747158634353,-429.09,0.00010958,2]
[360937047,1747158634365,-945.8751276,0.00010958,2]
[360937048,1747158634683,-0.35243334,0.00010958,2]
[360937049,1747158634695,-377.68243906,0.00010958,2]
[360937050,1747158634706,-302.17,0.00010958,2]
[360937051,1747158634716,-400.0,0.00010958,2]
[360937052,1747158634725,-1409.73,0.00010958,2]
[360937053,1747158634735,-400.0,0.00010958,2]
[360937054,1747158634744,-686.16,0.00010958,2]
[360937055,1747158634754,-392.88967942,0.00010958,2]
[360937056,1747158634777,-169.66032058,0.00010958,2]
[360937057,1747158634786,-400.0,0.00010958,2]
[360937058,1747158634799,-400.0,0.00010958,2]
[360937059,1747158634808,-114.98578022,0.00010958,2]
[360937060,1747158637750,-522.72421978,0.00010958,2]
[360937061,1747158637759,-400.0,0.00010958,2]
[360937062,1747158637768,-1465.89846744,0.00010958,2]
[360937063,1747158640843,-2812.80826535,0.000109,2]
[360937064,1747158640853,-851.70153256,0.00010958,2]
[360937065,1747158640863,-400.0,0.00010958,2]
[360937066,1747158640873,-400.0,0.00010958,2]
[360937067,1747158640884,-1136.3,0.00010958,2]
[360937068,1747158640894,-460.88,0.00010958,2]
[360937069,1747158640903,-316.31935,0.00010958,2]
[360937070,1747158640912,-1432.59085208,0.00010958,2]
[360937071,1747158641360,-1516.43536769,0.00010958,2]
[360937072,1747158641434,-5394.47262523,0.00010958,2]
[360937073,1747158641444,-547.99,0.00010958,2]
[360937074,1747158641454,-529.97,0.00010958,2]
[360937075,1747158641464,-400.0,0.00010958,2]
[360937076,1747158641473,-544.17,0.00010958,2]
[360937077,1747158641483,-400.0,0.00010958,2]
[360937078,1747158641493,-400.0,0.00010958,2]
[360937079,1747158641502,-2332.81,0.00010958,2]
[360937080,1747158641512,-3074.15,0.00010958,2]
[360937081,1747158641522,-400.0,0.00010958,2]
[360937082,1747158641531,-2771.94,0.00010958,2]
[360937083,1747158641541,-400.0,0.00010958,2]
[360937084,1747158641551,-400.0,0.00010958,2]
[360937085,1747158641560,-2640.23,0.00010958,2]
[360937086,1747158641569,-400.0,0.00010958,2]
[360937087,1747158641579,-995.85,0.00010958,2]
[360937088,1747158641588,-1798.17,0.00010958,2]
[360937089,1747158641598,-846.08,0.00010958,2]
[360937090,1747158641620,-400.0,0.00010958,2]
[360937091,1747158641631,-400.0,0.00010958,2]
[360937092,1747158641641,-400.0,0.00010958,2]
[360937093,1747158641651,-400.0,0.00010958,2]
[360937094,1747158641661,-400.0,0.00010958,2]
[360937095,1747158641672,-5010.27,0.00010958,2]
[360937096,1747158641681,-400.0,0.00010958,2]
[360937097,1747158641692,-416.03,0.00010958,2]
[360937098,1747158641702,-166.07955422,0.00010958,2]
[360937099,1747158641712,-423.72,0.00010958,2]
[360937100,1747158641722,-400.0,0.00010958,2]
[360937101,1747158641732,-1909.44,0.00010958,2]
[360937102,1747158641742,-400.0,0.00010958,2]
[360937103,1747158641752,-1584.79,0.00010958,2]
[360937104,1747158641762,-172.16116461,0.00010958,2]
[360937105,1747158641772,-2334.67,0.00010958,2]
[360937106,1747158641782,-302.58835385,0.00010958,2]
[360937107,1747158641792,-400.0,0.00010958,2]
[360937108,1747158641804,-400.0,0.00010958,2]
[360937109,1747158641814,-894.32,0.00010958,2]
[360937110,1747158641824,-2166.25,0.00010958,2]
[360937111,1747158641835,-400.0,0.00010958,2]
[360937112,1747158641845,-400.0,0.00010958,2]
[360937113,1747158641856,-400.0,0.00010958,2]
[360937114,1747158641867,-2113.1,0.00010958,2]
[360937115,1747158641877,-400.0,0.00010958,2]
[360937116,1747158641887,-621.83,0.00010958,2]
[360937117,1747158641897,-448.59,0.00010958,2]
[360937118,1747158641907,-403.62,0.00010958,2]
[360937119,1747158641918,-400.0,0.00010958,2]
[360937120,1747158641928,-1338.64,0.00010958,2]
[360937121,1747158641938,-400.0,0.00010958,2]
[360937122,1747158641948,-576.56,0.00010958,2]
[360937123,1747158641958,-400.0,0.00010958,2]
[360937124,1747158641968,-400.0,0.00010958,2]
[360937125,1747158641978,-400.0,0.00010958,2]
[360937126,1747158641987,-1174.13,0.00010958,2]
[360937127,1747158641997,-400.0,0.00010958,2]
[360937128,1747158642007,-400.0,0.00010958,2]
[360937129,1747158642016,-400.0,0.00010958,2]
[360937130,1747158642026,-534.86,0.00010958,2]
[360937131,1747158642036,-3592.14,0.00010958,2]
[360937132,1747158642046,-1162.05,0.00010958,2]
[360937133,1747158642055,-445.9,0.00010958,2]
[360937134,1747158642066,-1060.09,0.00010958,2]
[360937135,1747158642076,-256.49914192,0.00010958,2]
[360937136,1747158642086,-2266.23,0.00010958,2]
[360937137,1747158642096,-400.0,0.00010958,2]
[360937138,1747158642106,-400.0,0.00010958,2]
[360937139,1747158642116,-440.85,0.00010958,2]
[360937140,1747158642126,-400.0,0.00010958,2]
[360937141,1747158642136,-259.24890906,0.00010958,2]
[360937142,1747158642146,-706.58,0.00010958,2]
[360937143,1747158642155,-400.0,0.00010958,2]
[360937144,1747158642166,-400.0,0.00010958,2]
[360937145,1747158642175,-400.0,0.00010958,2]
[360937146,1747158642185,-400.0,0.00010958,2]
[360937147,1747158642195,-500.19,0.00010958,2]
[360937148,1747158642204,-400.0,0.00010958,2]
[360937149,1747158642214,-400.0,0.00010958,2]
[360937150,1747158642224,-820.71,0.00010958,2]
[360937151,1747158642234,-400.0,0.00010958,2]
[360937152,1747158642244,-400.0,0.00010958,2]
[360937153,1747158642253,-400.0,0.00010958,2]
[360937154,1747158642263,-255.74533581,0.00010958,2]
[360937155,1747158642274,-400.0,0.00010958,2]
[360937156,1747158642283,-414.75,0.00010958,2]
[360937157,1747158642293,-404.78,0.00010958,2]
[360937158,1747158642304,-426.15,0.00010958,2]
[360937159,1747158642315,-400.0,0.00010958,2]
[360937160,1747158642325,-400.0,0.00010958,2]
[360937162,1747158642335,-400.0,0.00010958,2]
[360937163,1747158642345,-400.0,0.00010958,2]
[360937164,1747158642354,-1458.46,0.00010958,2]
[360937165,1747158642366,-1373.03,0.00010958,2]
[360937167,1747158642375,-406.32849814,0.00010958,2]
[360937168,1747158642385,-400.0,0.00010958,2]
[360937169,1747158642395,-400.0,0.00010958,2]
[360937171,1747158642404,-400.0,0.00010958,2]
[360937172,1747158642414,-400.0,0.00010958,2]
[360937173,1747158642423,-782.86,0.00010958,2]
[360937174,1747158642434,-400.0,0.00010958,2]
[360937175,1747158642443,-400.0,0.00010958,2]
[360937176,1747158642454,-740.78,0.00010958,2]
[360937177,1747158642464,-400.0,0.00010958,2]
[360937178,1747158642474,-400.0,0.00010958,2]
[360937179,1747158642483,-400.0,0.00010958,2]
[360937180,1747158642493,-400.0,0.00010958,2]
[360937181,1747158642502,-705.65,0.00010958,2]
[360937182,1747158642512,-980.41,0.00010958,2]
[360937183,1747158642522,-801.11,0.00010958,2]
[360937184,1747158642531,-400.0,0.00010958,2]
[360937185,1747158642541,-1435.7,0.00010958,2]
[360937186,1747158642551,-420.8,0.00010958,2]
[360937187,1747158642560,-400.0,0.00010958,2]
[360937188,1747158642570,-853.22,0.00010958,2]
[360937189,1747158642579,-476.49047723,0.00010958,2]
[360937190,1747158642588,-488.24,0.00010958,2]
[360937191,1747158642598,-1030.94,0.00010958,2]
[360937192,1747158642607,-402.63,0.00010958,2]
[360937193,1747158642617,-400.0,0.00010958,2]
[360937194,1747158642626,-508.12,0.00010958,2]
[360937195,1747158642635,-291.47573847,0.00010958,2]
[360937196,1747158642646,-400.0,0.00010958,2]
[360937197,1747158642655,-478.47,0.00010958,2]
[360937198,1747158642665,-723.76,0.00010958,2]
[360937199,1747158642675,-400.0,0.00010958,2]
[360937200,1747158642686,-459.19,0.00010958,2]
[360937201,1747158642695,-400.0,0.00010958,2]
[360937202,1747158642706,-400.0,0.00010958,2]
[360937203,1747158642715,-421.87,0.00010958,2]
[360937204,1747158642726,-444.36,0.00010958,2]
[360937205,1747158642736,-400.0,0.00010958,2]
[360937206,1747158642746,-1311.42,0.00010958,2]
[360937207,1747158642755,-400.0,0.00010958,2]
[360937208,1747158642764,-691.11,0.00010958,2]
[360937209,1747158642773,-400.0,0.00010958,2]
[360937210,1747158642784,-400.0,0.00010958,2]
[360937211,1747158642794,-400.0,0.00010958,2]
[360937212,1747158642807,-400.0,0.00010958,2]
[360937213,1747158642818,-400.0,0.00010958,2]
[360937214,1747158642827,-585.83,0.00010958,2]
[360937215,1747158642837,-543.88,0.00010958,2]
[360937216,1747158642847,-525.83,0.00010958,2]
[360937217,1747158642857,-1079.27,0.00010958,2]
[360937218,1747158642867,-400.0,0.00010958,2]
[360937219,1747158642877,-400.0,0.00010958,2]
[360937220,1747158642887,-871.93,0.00010958,2]
[360937221,1747158642897,-400.0,0.00010958,2]
[360937222,1747158642907,-400.0,0.00010958,2]
[360937223,1747158642917,-801.16,0.00010958,2]
[360937224,1747158642926,-400.0,0.00010958,2]
[360937225,1747158642936,-400.0,0.00010958,2]
[360937226,1747158642947,-400.0,0.00010958,2]
[360937227,1747158642956,-400.0,0.00010958,2]
[360937228,1747158642967,-583.49,0.00010958,2]
[360937229,1747158642976,-535.51,0.00010958,2]
[360937230,1747158642986,-446.88,0.00010958,2]
[360937231,1747158642996,-400.0,0.00010958,2]
[360937232,1747158643006,-801.33,0.00010958,2]
[360937233,1747158643016,-1207.49,0.00010958,2]
[360937234,1747158643025,-776.86,0.00010958,2]
[360937235,1747158643036,-1258.61,0.00010958,2]
[360937236,1747158643046,-400.0,0.00010958,2]
[360937237,1747158643055,-1241.46,0.00010958,2]
[360937238,1747158643065,-2181.62,0.00010958,2]
[360937239,1747158643074,-400.0,0.00010958,2]
[360937240,1747158643084,-400.0,0.00010958,2]
[360937241,1747158643093,-400.0,0.00010958,2]
[360937242,1747158643102,-605.54,0.00010958,2]
[360937243,1747158643113,-400.0,0.00010958,2]
[360937245,1747158643122,-400.0,0.00010958,2]
[360937247,1747158643132,-521.24381482,0.00010958,2]
[360937249,1747158643142,-495.63,0.00010958,2]
[360937251,1747158643152,-400.0,0.00010958,2]
[360937253,1747158643161,-2149.23,0.00010958,2]
[360937255,1747158643171,-400.0,0.00010958,2]
[360937257,1747158643181,-615.27,0.00010958,2]
[360937259,1747158643190,-400.0,0.00010958,2]
[360937261,1747158643200,-400.0,0.00010958,2]
[360937263,1747158643210,-400.0,0.00010958,2]
[360937265,1747158643220,-1120.22,0.00010958,2]
[360937267,1747158643230,-588.25,0.00010958,2]
[360937269,1747158643239,-1197.7,0.00010958,2]
[360937271,1747158643249,-421.78,0.00010958,2]
[360937272,1747158643258,-400.0,0.00010958,2]
[360937273,1747158643267,-400.0,0.00010958,2]
[360937274,1747158643278,-707.87,0.00010958,2]
[360937275,1747158643287,-400.0,0.00010958,2]
[360937276,1747158643296,-400.0,0.00010958,2]
[360937277,1747158643306,-400.0,0.00010958,2]
[360937278,1747158643315,-637.14,0.00010958,2]
[360937279,1747158643325,-400.0,0.00010958,2]
[360937280,1747158643334,-577.96,0.00010958,2]
[360937281,1747158643343,-400.0,0.00010958,2]
[360937282,1747158643352,-400.0,0.00010958,2]
[360937283,1747158643362,-1252.84,0.00010958,2]
[360937284,1747158643372,-1636.63,0.00010958,2]
[360937285,1747158643382,-400.0,0.00010958,2]
[360937286,1747158643391,-2803.3,0.00010958,2]
[360937287,1747158643401,-400.0,0.00010958,2]
[360937288,1747158643411,-452.37,0.00010958,2]
[360937289,1747158643421,-400.0,0.00010958,2]
[360937290,1747158643431,-1841.1,0.00010958,2]
[360937291,1747158643440,-400.0,0.00010958,2]
[360937292,1747158643450,-2154.78,0.00010958,2]
[360937293,1747158643462,-1040.35,0.00010958,2]
[360937294,1747158643471,-400.0,0.00010958,2]
[360937295,1747158643481,-1662.23,0.00010958,2]
[360937296,1747158643491,-2000.0,0.00010958,2]
[360937297,1747158643501,-610.23,0.00010958,2]
[360937298,1747158643511,-952.91,0.00010958,2]
[360937299,1747158643520,-689.79,0.00010958,2]
[360937300,1747158643531,-2035.72,0.00010958,2]
[360937301,1747158643540,-400.0,0.00010958,2]
[360937302,1747158643550,-538.57,0.00010958,2]
[360937303,1747158643560,-788.97,0.00010958,2]
[360937304,1747158643571,-1270.33,0.00010958,2]
[360937305,1747158643580,-400.0,0.00010958,2]
[360937306,1747158643590,-620.02,0.00010958,2]
[360937307,1747158643600,-535.89,0.00010958,2]
[360937308,1747158643609,-400.0,0.00010958,2]
[360937309,1747158643621,-418.45,0.00010958,2]
[360937310,1747158643631,-1883.29,0.00010958,2]
[360937311,1747158643641,-539.94,0.00010958,2]
[360937312,1747158643651,-400.0,0.00010958,2]
[360937313,1747158643661,-494.98,0.00010958,2]
[360937314,1747158643671,-400.0,0.00010958,2]
[360937315,1747158643681,-1295.5,0.00010958,2]
[360937316,1747158643691,-400.0,0.00010958,2]
[360937317,1747158643701,-1412.1,0.00010958,2]
[360937318,1747158643711,-632.44,0.00010958,2]
[360937319,1747158643721,-400.0,0.00010958,2]
[360937320,1747158643731,-400.0,0.00010958,2]
[360937321,1747158643740,-434.04,0.00010958,2]
[360937322,1747158643749,-451.47,0.00010958,2]
[360937323,1747158643759,-1271.95,0.00010958,2]
[360937324,1747158643769,-400.0,0.00010958,2]
[360937325,1747158643778,-1317.0,0.00010958,2]
[360937326,1747158643788,-400.0,0.00010958,2]
[360937327,1747158643801,-672.33,0.00010958,2]
[360937328,1747158643812,-1465.3,0.00010958,2]
[360937329,1747158643821,-400.0,0.00010958,2]
[360937330,1747158643831,-5071.99,0.00010958,2]
[360937331,1747158643840,-400.0,0.00010958,2]
[360937332,1747158643850,-1871.8,0.00010958,2]
[360937333,1747158643860,-768.75,0.00010958,2]
[360937334,1747158643874,-400.0,0.00010958,2]
[360937335,1747158643884,-553.17,0.00010958,2]
[360937336,1747158643895,-777.55,0.00010958,2]
[360937337,1747158643904,-855.13,0.00010958,2]
[360937338,1747158643914,-1043.95,0.00010958,2]
[360937339,1747158643924,-935.97,0.00010958,2]
[360937340,1747158643934,-5007.84,0.00010958,2]
[360937341,1747158643945,-400.0,0.00010958,2]
[360937342,1747158643955,-400.0,0.00010958,2]
[360937343,1747158643966,-400.0,0.00010958,2]
[360937344,1747158643975,-400.0,0.00010958,2]
[360937345,1747158643986,-2061.78,0.00010958,2]
[360937346,1747158643996,-400.0,0.00010958,2]
[360937347,1747158644006,-599.59,0.00010958,2]
[360937348,1747158644015,-10008.76,0.00010958,2]
[360937349,1747158644025,-400.0,0.00010958,2]
[360937350,1747158644034,-1546.32,0.00010958,2]
[360937351,1747158644045,-2935.67,0.00010958,2]
[360937352,1747158644054,-400.0,0.00010958,2]
[360937353,1747158644063,-579.54,0.00010958,2]
[360937354,1747158644073,-400.0,0.00010958,2]
[360937355,1747158644084,-1135.76,0.00010958,2]
[360937356,1747158644093,-253.67836046,0.00010958,2]
[360937357,1747158644103,-1036.32,0.00010958,2]
[360937358,1747158644112,-1255.33,0.00010958,2]
[360937359,1747158644123,-400.0,0.00010958,2]
[360937360,1747158644132,-617.21,0.00010958,2]
[360937361,1747158644142,-400.0,0.00010958,2]
[360937362,1747158644152,-400.0,0.00010958,2]
[360937363,1747158644161,-400.0,0.00010958,2]
[360937364,1747158644171,-10256.28,0.00010958,2]
[360937365,1747158644180,-444.85,0.00010958,2]
[360937366,1747158644190,-400.0,0.00010958,2]
[360937367,1747158644199,-400.0,0.00010958,2]
[360937368,1747158644209,-4183.88,0.00010958,2]
[360937369,1747158644219,-1346.7,0.00010958,2]
[360937370,1747158644228,-400.0,0.00010958,2]
[360937371,1747158644238,-3156.51,0.00010958,2]
[360937372,1747158644248,-1157.78,0.00010958,2]
[360937373,1747158644257,-671.91,0.00010958,2]
[360937374,1747158644267,-1146.85,0.00010958,2]
[360937375,1747158644277,-400.0,0.00010958,2]
[360937376,1747158644288,-400.0,0.00010958,2]
[360937377,1747158644298,-2046.23,0.00010958,2]
[360937378,1747158644307,-778.75,0.00010958,2]
[360937379,1747158644317,-1787.73,0.00010958,2]
[360937380,1747158644327,-400.0,0.00010958,2]
[360937381,1747158644336,-400.0,0.00010958,2]
[360937382,1747158644345,-2145.85,0.00010958,2]
[360937383,1747158644355,-400.0,0.00010958,2]
[360937384,1747158644366,-628.15,0.00010958,2]
[360937385,1747158644376,-4071.95,0.00010958,2]
[360937386,1747158644386,-400.0,0.00010958,2]
[360937387,1747158644397,-151.68,0.00010958,2]
[360937388,1747158644407,-786.38,0.00010958,2]
[360937389,1747158644418,-1004.59,0.00010958,2]
[360937390,1747158644427,-400.0,0.00010958,2]
[360937391,1747158644436,-487.25,0.00010958,2]
[360937392,1747158644448,-400.0,0.00010958,2]
[360937393,1747158644458,-406.16968731,0.00010958,2]
[360937394,1747158644467,-670.23,0.00010958,2]
[360937395,1747158644477,-400.0,0.00010958,2]
[360937396,1747158644487,-429.36,0.00010958,2]
[360937397,1747158644497,-803.34,0.00010958,2]
[360937398,1747158644507,-570.54,0.00010958,2]
[360937399,1747158644516,-2676.84,0.00010958,2]
[360937400,1747158644526,-400.0,0.00010958,2]
[360937401,1747158644536,-400.0,0.00010958,2]
[360937402,1747158644545,-541.42723846,0.00010958,2]
[360937403,1747158644555,-400.0,0.00010958,2]
[360937404,1747158644564,-370.02395604,0.00010958,2]
[360937405,1747158644574,-409.42,0.00010958,2]
[360937406,1747158644585,-400.0,0.00010958,2]
[360937407,1747158644594,-400.0,0.00010958,2]
[360937408,1747158644603,-1086.29,0.00010958,2]
[360937409,1747158644613,-400.0,0.00010958,2]
[360937410,1747158644624,-795.31,0.00010958,2]
[360937411,1747158644634,-400.0,0.00010958,2]
[360937412,1747158644643,-400.0,0.00010958,2]
[360937413,1747158644653,-400.0,0.00010958,2]
[360937414,1747158644662,-400.0,0.00010958,2]
[360937415,1747158644671,-589.31,0.00010958,2]
[360937416,1747158644681,-400.0,0.00010958,2]
[360937417,1747158644691,-515.12,0.00010958,2]
[360937418,1747158644701,-400.0,0.00010958,2]
[360937419,1747158644711,-437.19,0.00010958,2]
[360937420,1747158644721,-400.0,0.00010958,2]
[360937421,1747158644730,-837.08,0.00010958,2]
[360937422,1747158644740,-1033.11,0.00010958,2]
[360937423,1747158644750,-400.0,0.00010958,2]
[360937424,1747158644759,-400.0,0.00010958,2]
[360937425,1747158644769,-400.0,0.00010958,2]
[360937426,1747158644779,-467.47,0.00010958,2]
[360937427,1747158644790,-724.65,0.00010958,2]
[360937428,1747158644801,-400.0,0.00010958,2]
[360937429,1747158644811,-400.0,0.00010958,2]
[360937430,1747158644820,-400.0,0.00010958,2]
[360937431,1747158644830,-483.06,0.00010958,2]
[360937432,1747158644841,-400.0,0.00010958,2]
[360937433,1747158644850,-834.73,0.00010958,2]
[360937434,1747158644860,-1495.01,0.00010958,2]
[360937435,1747158644870,-569.55,0.00010958,2]
[360937436,1747158644883,-1762.3,0.00010958,2]
[360937437,1747158644893,-405.13,0.00010958,2]
[360937438,1747158644904,-400.0,0.00010958,2]
[360937439,1747158644914,-400.0,0.00010958,2]
[360937440,1747158644924,-400.0,0.00010958,2]
[360937441,1747158644934,-1277.12,0.00010958,2]
[360937442,1747158644944,-400.0,0.00010958,2]
[360937443,1747158644954,-733.71,0.00010958,2]
[360937444,1747158644964,-507.26,0.00010958,2]
[360937445,1747158644973,-2493.43,0.00010958,2]
[360937446,1747158644983,-1106.58,0.00010958,2]
[360937447,1747158644994,-660.38,0.00010958,2]
[360937448,1747158645003,-400.0,0.00010958,2]
[360937449,1747158645013,-400.0,0.00010958,2]
[360937450,1747158645024,-400.0,0.00010958,2]
[360937451,1747158645034,-565.33,0.00010958,2]
[360937452,1747158645044,-400.0,0.00010958,2]
[360937453,1747158645054,-400.0,0.00010958,2]
[360937454,1747158645063,-400.0,0.00010958,2]
[360937455,1747158645072,-400.0,0.00010958,2]
[360937456,1747158645082,-401.93569056,0.00010958,2]
[360937457,1747158645091,-400.0,0.00010958,2]
[360937458,1747158645101,-686.06,0.00010958,2]
[360937459,1747158645110,-2020.68,0.00010958,2]
[360937460,1747158645122,-400.0,0.00010958,2]
[360937461,1747158645131,-400.0,0.00010958,2]
[360937462,1747158645140,-1973.13,0.00010958,2]
[360937463,1747158645150,-513.79,0.00010958,2]
[360937464,1747158645159,-400.0,0.00010958,2]
[360937465,1747158645169,-400.0,0.00010958,2]
[360937466,1747158645179,-400.0,0.00010958,2]
[360937467,1747158645189,-400.0,0.00010958,2]
[360937468,1747158645198,-933.31,0.00010958,2]
[360937470,1747158645208,-400.0,0.00010958,2]
[360937472,1747158645218,-733.19,0.00010958,2]
[360937473,1747158645227,-483.53,0.00010958,2]
[360937474,1747158645237,-2557.8,0.00010958,2]
[360937475,1747158645246,-400.0,0.00010958,2]
[360937476,1747158645256,-679.73,0.00010958,2]
[360937477,1747158645266,-413.28,0.00010958,2]
[360937478,1747158645276,-400.0,0.00010958,2]
[360937479,1747158645286,-809.14,0.00010958,2]
[360937480,1747158645296,-1387.03,0.00010958,2]
[360937481,1747158645306,-407.59,0.00010958,2]
[360937482,1747158645316,-1454.44,0.00010958,2]
[360937483,1747158645326,-356.1649995,0.00010958,2]
[360937484,1747158645335,-400.0,0.00010958,2]
[360937485,1747158645345,-400.0,0.00010958,2]
[360937486,1747158645355,-400.0,0.00010958,2]
[360937488,1747158645365,-400.0,0.00010958,2]
[360937489,1747158645375,-400.0,0.00010958,2]
[360937490,1747158645385,-669.67,0.00010958,2]
[360937491,1747158645395,-400.0,0.00010958,2]
[360937492,1747158645405,-706.58,0.00010958,2]
[360937493,1747158645415,-400.0,0.00010958,2]
[360937494,1747158645684,-404.1,0.00010958,2]
[360937495,1747158645694,-400.0,0.00010958,2]
[360937496,1747158645704,-946.15,0.00010958,2]
[360937497,1747158645715,-1510.56,0.00010958,2]
[360937498,1747158645724,-652.56,0.00010958,2]
[360937499,1747158645734,-1956.5,0.00010958,2]
[360937500,1747158645744,-1323.75,0.00010958,2]
[360937501,1747158645754,-706.23,0.00010958,2]
[360937502,1747158645764,-500.0,0.00010959,2]
[360937503,1747158645773,-500.0,0.00010959,2]
[360937504,1747158645784,-200.63,0.00010959,2]
[360937505,1747158645794,-3842.0,0.00010959,2]
[360937506,1747158645807,-1173.0,0.00010959,2]
[360937507,1747158645817,-500.0,0.00010959,2]
[360937508,1747158645826,-500.0,0.00010959,2]
[360937509,1747158645836,-500.0,0.00010959,2]
[360937510,1747158645847,-500.0,0.00010959,2]
[360937511,1747158645857,-500.0,0.00010959,2]
[360937512,1747158645867,-500.0,0.00010959,2]
[360937513,1747158645878,-500.0,0.00010959,2]
[360937514,1747158645887,-500.0,0.00010959,2]
[360937515,1747158645897,-500.0,0.00010959,2]
[360937516,1747158645907,-500.0,0.00010959,2]
[360937517,1747158645916,-500.0,0.00010959,2]
[360937518,1747158645925,-500.0,0.00010959,2]
[360937519,1747158645935,-500.0,0.00010959,2]
[360937520,1747158645944,-500.0,0.00010959,2]
[360937521,1747158645954,-500.0,0.00010959,2]
[360937522,1747158645963,-500.0,0.00010959,2]
[360937523,1747158645974,-300.0,0.00010959,2]
[360937524,1747158645984,-500.0,0.00010959,2]
[360937525,1747158645993,-500.0,0.00010959,2]
[360937526,1747158646005,-500.0,0.00010959,2]
[360937527,1747158646014,-347.35124825,0.00010959,2]
[360937528,1747158646025,-500.0,0.00010959,2]
[360937529,1747158646034,-500.0,0.00010973,2]
[360937530,1747158646043,-500.0,0.00010973,2]
[360937531,1747158646054,-500.0,0.00010973,2]
[360937532,1747158646063,-167.8533398,0.00010973,2]
[360937533,1747158646074,-500.69101784,0.00010973,2]
[360937534,1747158646086,-500.0,0.00010973,2]
[360937535,1747158646097,-500.0,0.00010973,2]
[360937536,1747158646106,-273.34308396,0.00010986,2]
[360937537,1747158646117,-246.31044732,0.0001099,2]
[360937538,1747158646127,-3486.49,0.00010993,2]
[360937539,1747158646136,-1518.61,0.00010993,2]
[360937540,1747158646146,-400.0,0.00010993,2]
[360937541,1747158646156,-1632.7,0.00010993,2]
[360937542,1747158646165,-967.47,0.00010993,2]